bitfinex/quotes_ETHUSD_20241223
["timestamp","ask_amount","ask_price","bid_price","bid_amount"]
[1734932115185,3.56010576,3317.6,3317.1,0.0326313]
[1734932115373,0.55,3317.5,3317.1,0.0326313]
[1734932117685,0.71243458,3317.4,3316.3,0.92872277]
[1734932117880,3.56010576,3317.2,3316.3,0.7899]
[1734932118052,3.56010576,3316.8,3316.3,0.7899]
[1734932120601,3.56010576,3316.8,3315.9,0.8118]
[1734932122046,3.56010576,3317.2,3315.9,0.8118]
[1734932122401,3.01362,3318.3,3315.5,3.15597793]
[1734932122402,3.56010576,3317.6,3316.6,3.8167]
[1734932125513,3.56010576,3317.6,3316.6,0.8167]
[1734932125700,3.56010576,3318.4,3317.4,3.7653]
[1734932126132,3.56010576,3318.4,3317.4,0.7653]
[1734932126415,3.76504,3317.7,3317.0,0.7653]
[1734932126565,3.390734,3317.6,3317.0,0.7653]
[1734932126770,0.376504,3317.6,3317.0,0.7653]
[1734932126971,0.7509,3317.7,3317.0,0.7653]
[1734932128394,3.56010576,3318.0,3317.0,0.7653]
[1734932128615,3.56010576,3318.0,3317.0,3.78002]
[1734932128819,3.01377,3318.1,3317.0,0.7653]
[1734932129108,3.56010576,3318.0,3317.0,0.7653]
[1734932129313,0.35601058,3317.9,3317.0,0.7653]
[1734932129610,3.01408,3317.8,3317.0,0.7653]
[1734932129813,0.35601058,3317.9,3317.0,0.7653]
[1734932130176,0.55,3317.8,3317.0,0.7653]
[1734932130382,3.56010576,3317.6,3316.7,0.7596]
[1734932130680,0.35601058,3317.5,3316.7,0.7596]
[1734932131212,6.57433576,3317.6,3316.7,0.7596]
[1734932131213,0.55,3317.8,3316.7,0.7596]
[1734932131811,0.55,3317.8,3316.7,3.77463]
[1734932132010,0.55,3317.8,3316.8,3.0]
[1734932133028,3.01414,3317.7,3316.7,0.7596]
[1734932133728,3.0145,3317.3,3316.7,0.7596]
[1734932133889,3.0146,3317.2,3316.7,0.7596]
[1734932134289,2.76869689,3317.1,3316.1,0.7939]
[1734932134800,5.78340689,3317.1,3316.1,0.7939]
[1734932135209,0.55,3317.0,3316.1,0.7939]
[1734932135535,2.76869689,3316.5,3315.6,0.8047]
[1734932135703,3.01532,3316.4,3315.6,0.8047]
[1734932136028,0.55,3316.4,3315.6,0.8047]
[1734932136525,3.01545,3316.3,3315.6,0.8047]
[1734932137528,3.36903969,3316.5,3315.6,0.8047]
[1734932138130,0.35381969,3316.5,3315.6,0.8047]
[1734932139325,0.69352581,3316.4,3315.6,0.8047]
[1734932140501,0.69352581,3316.4,3315.2,3.15633549]
[1734932140502,3.56629844,3315.7,3315.2,0.8087]
[1734932140701,6.58226844,3315.7,3315.2,0.8087]
[1734932140904,3.56629844,3316.1,3315.2,0.8087]
[1734932142109,3.78824,3316.4,3315.2,3.8087]
[1734932142960,0.7729,3316.4,3315.2,3.8087]
[1734932143243,3.56568,3316.0,3315.2,0.8087]
[1734932143541,3.56629844,3316.1,3315.2,0.8087]
[1734932143842,3.01534,3316.4,3315.3,3.0]
[1734932144012,3.67350384,3316.4,3315.3,3.0]
[1734932146693,0.65816384,3316.4,3315.3,3.0]
[1734932147042,3.01541,3316.3,3315.2,0.8087]
[1734932147747,3.01541,3316.3,3315.2,3.8087]
[1734932149151,3.83848,3317.0,3315.6,3.81]
[1734932149443,3.83848,3317.0,3315.8,3.01584]
[1734932149643,3.83848,3317.0,3315.9,3.0]
[1734932151051,3.01521,3316.6,3315.6,0.81]
[1734932151348,3.67336084,3316.6,3315.6,0.81]
[1734932151711,3.01532,3316.4,3315.6,0.81]
[1734932151921,0.65815084,3316.6,3315.6,0.81]
[1734932152250,0.65815084,3316.6,3315.6,3.81]
[1734932152660,3.56629844,3316.7,3315.7,3.01595]
[1734932152850,3.56629844,3316.7,3315.8,3.8326]
[1734932153244,3.56629844,3316.7,3315.8,0.8326]
[1734932153436,6.58136844,3316.7,3315.8,0.8326]
[1734932153637,3.01525,3316.5,3315.8,0.8326]
[1734932153960,0.356525,3316.4,3315.8,0.8326]
[1734932154549,0.55,3316.6,3315.8,0.8326]
[1734932154924,0.55,3316.6,3315.4,0.819]
[1734932154925,3.01577,3315.9,3315.4,0.819]
[1734932155325,3.01559,3316.1,3315.4,0.819]
[1734932155668,0.73477884,3316.0,3315.4,0.819]
[1734932157343,2.77044564,3316.1,3315.4,0.819]
[1734932158339,5.78603564,3316.1,3315.4,0.819]
[1734932159065,2.77044564,3316.1,3315.4,0.819]
[1734932160589,3.01554,3316.2,3315.4,0.819]
[1734932161487,0.59582097,3316.5,3315.4,0.819]
[1734932161488,2.77044564,3316.1,3315.4,0.819]
[1734932161793,3.0474902,3316.1,3315.4,0.819]
[1734932162179,0.7659,3315.9,3315.1,2.035]
[1734932162347,3.01612,3315.6,3315.1,2.035]
[1734932163794,3.01614,3315.5,3315.1,2.035]
[1734932164093,5.78684564,3315.2,3315.1,1.25]
[1734932164288,6.9975102,3315.2,3315.1,1.25]
[1734932166659,2.77044564,3315.2,3315.1,1.25]
[1734932167548,2.77044564,3315.5,3315.1,1.25]
[1734932167755,5.16593998,3316.1,3315.1,1.25]
[1734932167756,2.77044564,3315.8,3315.1,1.25]
[1734932168896,5.78631564,3315.8,3315.1,1.25]
[1734932169254,3.01605,3315.6,3315.1,1.25]
[1734932169780,3.01613,3315.5,3315.1,1.25]
[1734932170095,0.55,3315.7,3315.1,1.25]
[1734932170309,5.78684564,3315.2,3315.1,1.25]
[1734932172092,6.33684564,3315.2,3315.1,1.25]
[1734932172398,6.9705302,3315.2,3315.1,1.25]
[1734932172769,6.4205302,3315.2,3315.1,1.25]
[1734932172967,2.77044564,3315.2,3315.1,1.25]
[1734932173203,3.01624,3315.4,3315.1,2.0192]
[1734932173431,0.55,3315.4,3315.1,2.0192]
[1734932173714,3.0164,3315.2,3315.1,1.25]
[1734932173884,6.69348564,3315.2,3315.1,1.25]
[1734932174283,3.01704,3314.5,3314.0,0.7985]
[1734932176308,3.01686,3314.8,3314.0,0.7985]
[1734932176475,3.01689,3314.7,3314.0,0.7985]
[1734932177417,5.78710564,3315.0,3314.0,0.7985]
[1734932177711,3.01666,3315.0,3314.0,0.7985]
[1734932177866,0.55,3315.1,3314.0,0.7985]
[1734932178071,3.0167,3314.9,3314.0,0.7985]
[1734932178680,2.77044564,3315.0,3314.0,0.7985]
[1734932178893,3.01708,3314.5,3314.0,0.7985]
[1734932179684,5.78705564,3315.0,3314.0,0.7985]
[1734932179685,3.01715,3314.4,3314.0,0.7985]
[1734932179886,3.01723,3314.3,3314.0,0.7985]
[1734932180081,0.55,3314.1,3313.7,0.1700415]
[1734932180282,6.33812564,3313.8,3313.7,1.5e-06]
[1734932180507,7.15902564,3313.8,3313.7,1.5e-06]
[1734932181309,0.8056,3313.6,3313.1,1.25001405]
[1734932181642,6.09089128,3313.8,3313.1,4.05e-06]
[1734932181643,7.14427564,3313.2,3313.1,4.05e-06]
[1734932181843,7.8587032,3313.2,3313.1,4.05e-06]
[1734932182434,0.55,3313.1,3313.0,0.36581513]
[1734932182847,6.03682,3313.0,3312.1,0.788]
[1734932183002,3.57466872,3312.5,3312.1,0.788]
[1734932183840,0.55,3313.1,3312.1,0.788]
[1734932183841,6.59325872,3312.9,3312.1,0.788]
[1734932184213,3.01864,3312.8,3312.1,0.788]
[1734932184611,3.0187,3312.7,3312.1,0.788]
[1734932184944,3.01877,3312.6,3312.1,0.788]
[1734932185314,4.39196872,3312.5,3311.4,0.7552]
[1734932185556,3.01906,3312.3,3311.4,0.7552]
[1734932186538,4.39196872,3312.5,3311.4,0.7552]
[1734932186745,3.01914,3312.2,3311.4,0.7552]
[1734932187955,4.39196872,3312.5,3311.4,0.7552]
[1734932188155,3.01908,3312.3,3311.4,0.7552]
[1734932188463,3.01916,3312.2,3311.4,0.7552]
[1734932189260,3.45816687,3312.4,3311.4,0.7552]
[1734932189416,3.57466872,3312.5,3311.4,0.7552]
[1734932190114,3.57466872,3312.5,3311.7,3.0]
[1734932190316,3.57466872,3312.5,3311.8,0.7927]
[1734932192065,3.57466872,3312.9,3311.8,0.7927]
[1734932192268,6.59280872,3313.3,3312.1,3.0]
[1734932192420,6.59280872,3313.3,3312.2,0.7927]
[1734932192762,3.01823,3313.2,3312.2,0.7927]
[1734932192963,1.078584,3313.6,3312.2,0.7927]
[1734932192964,3.57466872,3312.9,3312.2,0.7927]
[1734932193115,3.01875,3312.7,3312.2,0.7927]
[1734932193319,3.57466872,3312.9,3312.2,0.7927]
[1734932194930,3.57466872,3313.3,3312.4,3.0]
[1734932195132,3.80595,3313.7,3312.5,0.8252]
[1734932195331,0.73806187,3313.6,3312.5,0.8252]
[1734932195675,3.0181,3313.4,3312.5,0.8252]
[1734932196157,0.73806187,3313.6,3312.5,0.8252]
[1734932196381,3.57466872,3313.8,3312.8,0.8252]
[1734932197031,0.793,3314.0,3313.0,0.8252]
[1734932197032,3.01751,3314.0,3313.0,0.8252]
[1734932197260,3.01761,3313.9,3313.0,0.8252]
[1734932197838,6.59205872,3314.2,3313.0,0.8252]
[1734932198046,6.59205872,3314.2,3312.9,0.7779]
[1734932198225,3.01742,3314.1,3313.2,0.7779]
[1734932198445,3.57466872,3314.2,3313.2,0.7779]
[1734932199018,4.19093383,3314.6,3313.2,3.0]
[1734932199220,4.0740821,3314.6,3313.3,0.7779]
[1734932199420,7.0910421,3314.6,3313.4,0.7779]
[1734932199648,7.0910421,3314.6,3313.5,0.7779]
[1734932199869,3.01724,3314.3,3313.5,0.7779]
[1734932200069,3.01741,3314.1,3313.5,0.7779]
[1734932200279,0.56245979,3314.1,3313.5,0.7779]
[1734932200448,3.01768,3313.9,3313.5,0.7779]
[1734932201482,0.56245979,3314.1,3313.5,0.7779]
[1734932201651,3.57986979,3314.1,3313.5,0.7779]
[1734932203193,3.01699,3314.6,3313.5,0.7779]
[1734932203194,3.01717,3314.4,3313.5,0.7779]
[1734932203537,3.01695,3314.6,3313.5,0.7779]
[1734932204490,0.60846888,3314.9,3313.5,0.7779]
[1734932204637,3.01677,3314.8,3313.7,0.8155]
[1734932205163,0.60846888,3314.9,3314.3,3.01722]
[1734932205500,0.7885,3315.6,3314.5,0.8155]
[1734932205674,3.01597,3315.7,3314.5,0.8155]
[1734932205878,0.48892354,3315.6,3314.5,0.8155]
[1734932206189,0.48892354,3315.6,3314.8,3.01675]
[1734932206420,0.59205099,3315.7,3314.9,0.8155]
[1734932206696,3.01559,3316.1,3314.9,0.8155]
[1734932206847,3.01583,3315.9,3314.9,0.8155]
[1734932207449,6.57397733,3316.6,3315.2,3.01638]
[1734932207663,3.20256654,3316.5,3315.3,3.8243]
[1734932208289,0.18732654,3316.5,3315.3,0.8243]
[1734932208599,3.01555,3316.2,3315.3,0.8243]
[1734932208788,0.55,3316.4,3315.3,0.8243]
[1734932208960,3.016,3315.7,3314.5,3.0]
[1734932209294,3.56671369,3316.3,3314.9,0.7917]
[1734932209295,3.01579,3315.9,3314.9,0.7917]
[1734932209900,3.01585,3315.9,3314.9,0.7917]
[1734932210067,0.55,3316.1,3314.9,0.7917]
[1734932210399,3.01598,3315.7,3314.9,0.7917]
[1734932210693,0.55,3316.1,3314.9,0.7917]
[1734932210987,3.01586,3315.8,3314.9,0.7917]
[1734932211193,0.55,3315.9,3314.9,0.7917]
[1734932211395,3.01618,3315.5,3314.9,0.7917]
[1734932212003,3.01644,3315.2,3314.9,0.7917]
[1734932212151,3.01696,3314.6,3314.3,0.7727]
[1734932212349,3.01668,3314.9,3314.3,0.7727]
[1734932212595,3.0169,3314.7,3314.3,0.7727]
[1734932214804,3.01667,3315.0,3314.3,0.7727]
[1734932215290,0.301644,3315.1,3314.3,0.7727]
[1734932215498,3.01697,3314.6,3314.3,0.7727]
[1734932215666,3.01672,3314.9,3314.3,0.7727]
[1734932215865,0.55,3315.2,3314.3,0.7727]
[1734932216083,3.01725,3314.3,3313.4,0.8163]
[1734932216285,3.0165,3315.1,3313.8,3.01767]
[1734932216506,3.01599,3315.7,3314.4,3.0]
[1734932216705,3.01599,3315.7,3314.5,0.8163]
[1734932217412,0.50838304,3316.0,3314.5,0.8163]
[1734932217413,3.01626,3315.4,3314.5,0.8163]
[1734932217597,0.60150238,3315.9,3314.5,0.8163]
[1734932217808,0.41256354,3315.8,3314.5,0.8163]
[1734932218080,0.41256354,3315.8,3314.8,3.0]
[1734932218275,0.8208,3316.1,3314.8,3.0]
[1734932218276,3.01577,3315.9,3314.9,0.8163]
[1734932218501,3.01596,3315.7,3314.9,0.8163]
[1734932218700,3.01589,3315.8,3314.9,0.8163]
[1734932219004,0.8208,3316.1,3314.9,0.8163]
[1734932219483,3.01592,3315.8,3314.9,0.8163]
[1734932219709,0.301592,3315.8,3314.9,0.8163]
[1734932220023,4.38751369,3316.1,3314.7,0.8163]
[1734932220222,3.01625,3315.4,3314.7,0.8163]
[1734932220409,0.55,3315.7,3314.7,0.8163]
[1734932220607,3.01644,3315.2,3314.7,0.8163]
[1734932220814,3.01616,3315.5,3314.7,0.8163]
[1734932221126,0.55,3315.7,3314.7,0.8163]
[1734932221127,3.317846,3315.4,3314.7,0.8163]
[1734932221296,3.01633,3315.3,3314.7,0.8163]
[1734932221717,0.301616,3315.4,3314.7,0.8163]
[1734932222011,3.317876,3315.4,3314.7,0.8163]
[1734932223110,0.301616,3315.4,3314.7,0.8163]
[1734932223313,3.01605,3315.6,3314.7,0.8163]
[1734932223883,0.59334703,3316.0,3314.7,0.8163]
[1734932224095,3.60902703,3316.0,3314.8,3.7743]
[1734932224329,3.60902703,3316.0,3314.8,3.0]
[1734932224526,3.60902703,3316.0,3314.9,3.7743]
[1734932224738,4.04125077,3316.0,3314.9,3.7743]
[1734932225249,4.04125077,3316.0,3315.0,0.8261]
[1734932225404,3.60902703,3316.0,3315.0,0.8261]
[1734932226157,0.59334703,3316.0,3315.0,0.8261]
[1734932228140,3.01596,3315.7,3315.0,0.8261]
[1734932229342,0.55,3315.9,3315.0,0.8261]
[1734932229752,4.11671369,3315.7,3314.5,0.8202]
[1734932230049,3.01643,3315.2,3314.5,0.8202]
[1734932230219,3.01678,3314.8,3314.5,0.8202]
[1734932230546,3.01622,3315.4,3312.6,6.39375514]
[1734932230547,0.55,3314.9,3313.7,0.8202]
[1734932230746,3.56676,3314.9,3313.7,0.8202]
[1734932230901,3.01714,3314.4,3313.7,0.8202]
[1734932231100,3.01692,3314.7,3313.7,0.8202]
[1734932231611,3.63533163,3314.7,3313.7,0.8202]
[1734932232720,0.61841163,3314.7,3313.7,0.8202]
[1734932233213,3.01697,3314.6,3313.7,0.8202]
[1734932233800,0.61841163,3314.7,3313.7,0.8202]
[1734932234797,3.63528163,3314.7,3313.7,0.8202]
[1734932235963,0.7685,3315.5,3314.0,0.8128]
[1734932236120,0.60018366,3315.3,3314.0,0.8128]
[1734932236566,3.372014,3315.3,3314.0,0.8128]
[1734932236722,3.372014,3315.3,3314.0,3.8128]
[1734932236723,3.01655,3315.1,3314.0,3.8128]
[1734932236927,0.60018366,3315.3,3314.1,0.8032]
[1734932237265,0.60018366,3315.3,3314.3,0.8032]
[1734932237412,4.09530154,3315.3,3314.3,0.8032]
[1734932237616,3.01608,3315.6,3314.4,3.8032]
[1734932237875,3.01608,3315.6,3314.0,0.8032]
[1734932238084,0.61855046,3315.6,3314.9,3.01661]
[1734932238232,0.61855046,3315.6,3314.8,0.8032]
[1734932238438,0.61855046,3315.6,3314.8,3.8032]
[1734932238672,2.77183034,3316.2,3314.9,0.8032]
[1734932238933,3.56262958,3316.1,3315.0,0.8032]
[1734932239135,0.54699958,3316.1,3315.0,0.8032]
[1734932239483,0.6130525,3315.9,3315.0,0.8032]
[1734932239793,3.0164,3315.3,3315.0,0.8032]
[1734932240474,3.01653,3315.1,3314.0,0.8032]
[1734932240786,3.01629,3315.4,3314.2,3.0]
[1734932240945,3.01629,3315.4,3314.4,3.0]
[1734932241153,0.6130525,3315.9,3314.7,3.779]
[1734932241353,0.6130525,3315.9,3314.8,0.779]
[1734932241551,4.88903542,3316.0,3315.0,0.8099]
[1734932241876,1.87326542,3316.0,3315.0,0.8099]
[1734932242381,1.87326542,3316.0,3315.1,0.8099]
[1734932242578,0.54699958,3316.1,3315.1,0.8099]
[1734932243108,0.54699958,3316.1,3315.1,3.8099]
[1734932243272,3.0157,3316.0,3315.1,0.8099]
[1734932243600,3.0155,3316.2,3315.1,0.8099]
[1734932243781,0.55,3316.4,3315.1,0.8099]
[1734932243782,3.01565,3316.1,3315.1,0.8099]
[1734932244784,0.55,3316.0,3315.1,0.8099]
[1734932244984,0.94382445,3316.0,3315.1,0.8099]
[1734932245170,0.39382445,3316.0,3315.1,0.8099]
[1734932245369,3.63202414,3316.1,3315.1,0.8099]
[1734932247196,1.87326542,3316.5,3315.6,0.8143]
[1734932247400,1.87326542,3316.5,3315.9,0.8143]
[1734932248173,0.60360993,3316.9,3315.9,0.8143]
[1734932248513,0.93395747,3316.9,3315.9,0.8143]
[1734932248715,3.01497,3316.8,3315.9,0.8143]
[1734932250698,1.87326542,3317.2,3316.0,3.82995]
[1734932250903,1.87326542,3317.2,3316.7,0.8143]
[1734932251090,1.87326542,3317.3,3316.7,3.8143]
[1734932251270,1.87326542,3317.3,3316.8,0.8143]
[1734932252491,1.87326542,3318.2,3316.9,0.7775]
[1734932252687,0.43709527,3318.1,3317.2,3.7775]
[1734932253207,3.01434,3317.5,3317.2,0.7775]
[1734932253380,3.01386,3318.0,3317.2,0.7775]
[1734932253707,3.01433,3317.5,3317.2,0.7775]
[1734932253864,0.301433,3317.4,3317.2,0.7775]
[1734932254660,3.315843,3317.4,3316.5,0.7775]
[1734932256091,3.0145,3317.3,3316.5,0.7775]
[1734932256301,0.301433,3317.4,3316.5,0.7775]
[1734932256470,0.55,3317.5,3316.5,0.7775]
[1734932257467,3.01442,3317.4,3316.5,0.7775]
[1734932258300,3.01451,3317.3,3316.5,0.7775]
[1734932259589,3.01468,3317.1,3316.5,0.7775]
[1734932259922,3.01497,3316.8,3316.5,0.7775]
[1734932260127,0.8196,3317.4,3316.5,0.7775]
[1734932260325,3.01513,3316.6,3315.6,0.7885]
[1734932260556,2.77183034,3316.8,3315.6,0.7885]
[1734932260759,3.01524,3316.5,3315.6,0.7885]
[1734932261129,0.27718303,3316.7,3315.6,0.7885]
[1734932261315,3.29222303,3316.7,3315.6,0.7885]
[1734932261660,3.01523,3316.5,3315.6,0.7885]
[1734932262419,0.55,3316.6,3315.6,0.7885]
[1734932262615,3.01579,3315.9,3315.6,0.7885]
[1734932262932,3.01606,3315.6,3314.8,0.796]
[1734932263257,3.01616,3315.5,3314.8,0.796]
[1734932263626,3.56587,3315.8,3314.8,0.796]
[1734932263858,3.0165,3315.2,3314.8,0.796]
[1734932264011,3.01651,3315.1,3314.8,0.796]
[1734932264344,2.77183034,3315.0,3314.8,0.796]
[1734932264526,5.78843034,3315.0,3313.9,0.7887]
[1734932264858,2.77183034,3315.0,3313.9,0.7887]
[1734932265032,3.01669,3314.9,3313.9,0.7887]
[1734932265463,2.77183034,3315.0,3313.9,0.7887]
[1734932265766,2.77183034,3315.0,3314.0,3.0]
[1734932266061,6.3805003,3315.3,3314.2,0.8127]
[1734932266245,4.05722033,3315.3,3314.2,0.8127]
[1734932266421,3.01647,3315.2,3314.2,0.8127]
[1734932268084,2.77183034,3315.3,3314.2,0.8127]
[1734932268273,5.78817034,3315.3,3314.2,0.8127]
[1734932268781,2.77183034,3315.3,3314.5,3.0]
[1734932268962,3.01614,3315.5,3314.6,0.8127]
[1734932269276,3.59502703,3315.4,3314.6,0.8127]
[1734932269434,2.77183034,3315.6,3314.6,0.8127]
[1734932269435,5.78787034,3315.6,3314.6,0.8127]
[1734932270183,2.77183034,3315.6,3314.6,0.8127]
[1734932270365,5.78789034,3315.6,3314.6,0.8127]
[1734932270770,2.77183034,3315.6,3314.7,3.8154]
[1734932271087,2.77183034,3315.6,3314.8,0.8154]
[1734932271437,5.78794034,3315.6,3314.8,0.8154]
[1734932271976,3.01623,3315.4,3314.8,0.8154]
[1734932272179,6.42664354,3315.6,3314.8,0.8154]
[1734932274833,2.77183034,3315.3,3314.8,0.8154]
[1734932275251,3.01641,3315.2,3314.8,0.8154]
[1734932275500,3.01641,3315.2,3314.1,0.8154]
[1734932276480,3.01641,3315.2,3314.1,3.8154]
[1734932276819,3.01641,3315.2,3314.2,0.8154]
[1734932278685,3.01641,3315.2,3314.2,3.8154]
[1734932279167,0.65751403,3315.2,3314.2,3.8154]
[1734932279334,3.01659,3315.0,3314.2,0.8154]
[1734932280485,3.67396403,3315.2,3314.2,3.8154]
[1734932280787,3.0165,3315.1,3314.2,0.8154]
[1734932280938,3.01659,3315.0,3314.2,0.8154]
[1734932281285,3.01697,3314.6,3314.2,0.8154]
[1734932281580,2.77183034,3314.7,3314.2,0.8154]
[1734932281747,3.01724,3314.3,3313.4,0.8104]
[1734932281954,2.77183034,3314.4,3313.4,0.96665128]
[1734932282175,2.77183034,3314.4,3313.4,0.8104]
[1734932283863,3.0178,3313.7,3313.4,0.8104]
[1734932284605,5.78963034,3313.7,3313.4,0.8104]
[1734932284808,0.57896303,3313.6,3312.7,0.8098]
[1734932284955,2.77183034,3313.4,3312.7,0.8098]
[1734932285474,2.77183034,3313.4,3312.8,0.8098]
[1734932285665,2.77183034,3313.7,3312.8,0.8098]
[1734932286591,2.77183034,3313.7,3312.9,3.0]
[1734932286894,2.77183034,3313.7,3313.0,0.757]
[1734932287988,3.01786,3313.6,3313.0,0.757]
[1734932288186,2.77183034,3313.7,3313.0,0.757]
[1734932289210,5.78966034,3313.7,3313.0,0.757]
[1734932289510,2.77183034,3313.4,3313.0,0.757]
[1734932289665,3.01857,3312.9,3312.7,0.7795]
[1734932289867,2.77183034,3312.8,3312.7,0.7795]
[1734932290075,2.77183034,3313.1,3312.7,0.7795]
[1734932290758,2.77183034,3313.4,3312.7,0.7795]
[1734932292634,3.59677603,3313.7,3312.6,0.8192]
[1734932292635,2.77183034,3313.7,3312.6,0.8192]
[1734932293126,2.77183034,3313.7,3312.7,3.0]
[1734932293323,2.77183034,3313.7,3312.8,0.8192]
[1734932293524,2.77183034,3313.7,3312.8,3.0]
[1734932293701,8.78844034,3315.0,3312.1,12.3068646]
[1734932293702,2.77183034,3314.3,3312.6,0.8192]
[1734932293902,2.77183034,3314.3,3313.3,3.0]
[1734932294203,2.77183034,3314.6,3313.8,3.8192]
[1734932294443,2.77183034,3314.6,3313.9,0.8192]
[1734932295826,2.77183034,3314.9,3314.0,3.0]
[1734932296028,2.77183034,3314.9,3314.0,3.8091]
[1734932296220,0.8064,3315.9,3314.1,0.8091]
[1734932296452,2.77183034,3315.6,3314.7,3.8091]
[1734932296635,3.11036485,3315.6,3314.7,3.8091]
[1734932297037,2.77183034,3315.6,3314.7,3.8091]
[1734932297352,2.77183034,3315.6,3314.8,0.8291]
[1734932297559,0.7992,3316.3,3314.5,0.8291]
[1734932297560,2.77183034,3315.9,3314.5,0.8291]
[1734932297768,2.77183034,3316.2,3315.3,3.8291]
[1734932297942,2.77183034,3316.2,3315.5,3.0]
[1734932298156,2.77183034,3316.2,3315.6,0.8291]
[1734932299276,3.04901337,3316.2,3315.6,0.8291]
[1734932299431,2.77183034,3315.9,3315.1,0.8291]
[1734932299632,2.77183034,3315.5,3315.1,0.8291]
[1734932299932,5.78799034,3315.5,3315.1,0.8291]
[1734932300150,2.77183034,3315.2,3314.2,0.7646]
[1734932300675,2.77183034,3315.2,3314.2,3.7819]
[1734932300876,2.77183034,3315.5,3314.4,3.0171]
[1734932301079,2.77183034,3315.5,3314.5,0.7817]
[1734932301675,2.77183034,3315.5,3314.6,3.7817]
[1734932302750,5.78798034,3315.5,3314.6,0.7817]
[1734932302948,0.27718303,3315.4,3314.6,0.7817]
[1734932303198,5.78798034,3315.5,3314.6,0.7817]
[1734932303366,3.0163,3315.4,3314.6,0.7817]
[1734932303997,2.77183034,3315.5,3314.6,0.7817]
[1734932304577,5.78803034,3315.5,3314.6,0.7817]
[1734932305103,2.77183034,3315.5,3314.6,0.7817]
[1734932305399,3.01625,3315.4,3314.6,0.7817]
[1734932305800,2.77183034,3315.8,3314.6,3.01694]
[1734932306094,2.77183034,3316.1,3314.8,0.751]
[1734932306248,2.77183034,3316.1,3315.1,3.01649]
[1734932306453,5.78716034,3316.4,3315.3,0.751]
[1734932306684,2.77183034,3316.1,3315.3,0.751]
[1734932306925,3.01581,3315.9,3315.3,0.751]
[1734932307213,3.01589,3315.8,3315.3,0.751]
[1734932308353,5.78748034,3316.1,3315.3,0.751]
[1734932308693,2.77183034,3316.1,3315.3,0.751]
[1734932308997,5.78720034,3316.4,3315.3,0.751]
[1734932310306,5.78720034,3316.4,3315.3,3.751]
[1734932310838,2.77183034,3316.4,3315.3,0.751]
[1734932311187,3.01554,3316.2,3315.3,0.751]
[1734932311948,3.01572,3316.0,3315.3,0.751]
[1734932312232,3.59447503,3316.0,3315.3,0.751]
[1734932312610,0.57875503,3316.0,3315.3,0.751]
[1734932312823,2.77183034,3316.1,3315.3,0.751]
[1734932313733,2.77183034,3316.4,3315.3,0.751]
[1734932314031,3.01543,3316.3,3315.3,0.751]
[1734932315115,2.77183034,3316.4,3315.3,0.751]
[1734932316198,3.01542,3316.3,3315.3,0.751]
[1734932316438,3.01553,3316.2,3315.3,0.751]
[1734932317024,2.77183034,3316.1,3315.3,0.751]
[1734932318555,3.01568,3316.0,3315.3,0.751]
[1734932318729,2.77183034,3316.1,3315.3,0.751]
[1734932320243,5.78742034,3316.1,3315.3,0.751]
[1734932320621,6.06405337,3316.7,3315.0,0.7763]
[1734932320937,3.01516,3316.6,3315.4,3.0]
[1734932321111,3.01516,3316.6,3315.5,3.0]
[1734932321311,3.01516,3316.6,3315.6,0.7763]
[1734932321555,3.62157734,3316.6,3315.6,0.7763]
[1734932321757,0.60641734,3316.6,3315.6,0.7763]
[1734932321964,0.55,3316.5,3315.6,0.7763]
[1734932322172,3.0154,3316.4,3315.6,0.7763]
[1734932322473,3.01532,3316.4,3315.6,0.7763]
[1734932324881,0.60641734,3316.6,3315.6,0.7763]
[1734932325049,5.78662034,3317.0,3315.8,3.01581]
[1734932325367,5.78662034,3317.0,3316.0,0.8302]
[1734932325546,6.44096237,3317.0,3316.0,0.8302]
[1734932325763,3.42617237,3317.0,3316.0,0.8302]
[1734932325982,3.01507,3316.7,3316.0,0.8302]
[1734932326264,3.01513,3316.6,3316.0,0.8302]
[1734932326618,2.77183034,3316.4,3316.0,0.8302]
[1734932327040,3.01541,3316.3,3316.0,0.8302]
[1734932328031,0.55,3316.6,3316.0,0.8302]
[1734932328232,1.19409324,3316.9,3316.0,0.8302]
[1734932328447,3.01486,3316.9,3316.0,0.8302]
[1734932328638,2.77183034,3317.0,3316.0,0.8302]
[1734932328836,2.77183034,3317.3,3316.1,0.794]
[1734932329039,5.78633034,3317.3,3316.1,0.794]
[1734932329635,6.37611936,3317.3,3316.1,0.794]
[1734932329832,3.01459,3317.2,3316.1,0.794]
[1734932331493,3.0144,3317.5,3316.1,0.7789]
[1734932331780,5.78582034,3317.9,3316.5,0.7789]
[1734932332850,0.301378,3318.0,3317.0,3.0]
[1734932333070,0.301378,3318.0,3317.1,0.7789]
[1734932333294,3.315258,3318.0,3317.1,0.7789]
[1734932333979,0.301378,3318.0,3317.1,0.7789]
[1734932334491,3.315248,3318.0,3317.1,0.7789]
[1734932336586,3.01369,3318.2,3317.1,0.7789]
[1734932336880,3.01377,3318.1,3317.1,0.7789]
[1734932337115,0.55,3318.3,3317.1,0.7789]
[1734932337276,0.55,3318.1,3317.1,0.7789]
[1734932337612,0.33218303,3318.0,3317.1,0.7789]
[1734932338261,3.0141,3317.8,3317.1,0.7789]
[1734932338466,0.33218303,3318.0,3317.1,0.7789]
[1734932338467,3.01387,3318.0,3317.1,0.7789]
[1734932338774,0.55,3318.3,3317.2,3.0]
[1734932338978,3.56359,3318.3,3317.3,0.8281]
[1734932339779,3.01369,3318.2,3317.3,0.8281]
[1734932340385,0.55,3318.3,3317.3,0.8281]
[1734932340670,0.33218303,3318.3,3317.3,0.8281]